[Event "Seniors-LEM-50 Sachsen-Anhalt 2024"]
[Site "Magdeburg"]
[Date "2024.07.01"]
[Round "1.10"]
[White "Leib, Britta"]
[Black "Janeke, Thomas"]
[Result "1/2-1/2"]
[ECO "B01"]
[WhiteElo "1920"]
[BlackElo "1764"]
[Annotator "TA"]
[PlyCount "41"]
[EventDate "2024.06.25"]
[EventType "swiss"]
[EventCountry "GER"]
[SourceTitle "playchess.com"]
[Source "ChessBase"]
[SourceQuality "1"]
[TimeControl "40/5400+30:1800+30"]

{[%evp 11,41,39,43,56,32,31,60,25,24,3,17,-2,5,0,15,19,19,-6,16,3,15,11,14,2,10,0,13,0,0,0,19,13]} 1. e4 {[%emt 1:31:00]} d5 {[%emt 1:31:00]} 2. exd5 {[%emt 0:00:30]} Qxd5 {[%emt 0:00:30]} 3. Nc3 {[%emt 0:00:30]} Qa5 {[%emt 0:00:30]} 4. d4 {[%emt 0:00:30]} Nf6 {[%emt 0:00:30]} 5. Bd2 {[%emt 0:00:30]} c6 {[%emt 0:00:30]} 6. Bd3 {[%emt 0:00:30]} Bg4 {[%emt 0:00:30]} 7. Nge2 {[%emt 0:00:30]} Nbd7 {[%emt 0:00:30]} 8. O-O {[%emt 0:00:30]} e6 {[%emt 0:00:30]} 9. h3 {[%emt 0:00:30] White is slightly better.} (9. Qe1 {simplifies} Bxe2 10. Nxe2 Qc7 11. f4) 9... Bh5 {[%emt 0:00:30]} 10. Ne4 {[%emt 0:00:30]} Qc7 {[%emt 0:00:30] The position is equal.} 11. Bg5 {[%emt 0:00:30]} Be7 {[%emt 0:00:30]} 12. N4g3 {[%emt 0:00:30]} Bxe2 {[%emt 0:00:30]} 13. Qxe2 {[%emt 0:00:30]} O-O {[%emt 0:00:30]} 14. Rfe1 {[%emt 0:00:30]} Nd5 {[%emt 0:00:30]} 15. Bd2 {[%emt 0:00:30]} Nf4 {[%emt 0:00:30]} 16. Bxf4 {[%emt 0:00:30]} Qxf4 {[%emt 0:00:30]} 17. Rad1 {[%emt 0:00:30]} Nf6 {[%emt 0:00:30]} 18. c3 {[%emt 0:00:30]} Rfd8 {[%emt 0:00:30]} 19. Qc2 {[%emt 0:00:30]} Rd7 {[%emt 0:00:30]} 20. Ne4 {[%emt 0:00:30]} h6 {[%emt 0:00:30]} 21. g3 {[%emt 0:00:30] Weighted Error Value: White=0.12 (very precise) /Black=0.08 (flawless) .  Inaccurate:     	White=1     	Black=1      OK:         	White=3     	Black=6} 1/2-1/2

[Event "Seniors-LEM-50 Sachsen-Anhalt 2024"]
[Site "Magdeburg"]
[Date "2024.07.01"]
[Round "1.11"]
[White "Ahrens, Gunnar"]
[Black "Dannhauer, Frank"]
[Result "0-1"]
[ECO "A06"]
[WhiteElo "1750"]
[BlackElo "1921"]
[Annotator "TA"]
[PlyCount "98"]
[EventDate "2024.06.25"]
[EventType "swiss"]
[EventCountry "GER"]
[SourceTitle "playchess.com"]
[Source "ChessBase"]
[SourceQuality "1"]
[TimeControl "40/5400+30:1800+30"]

{[%evp 20,98,0,0,0,-29,-27,-47,-53,-64,-65,-62,-64,-83,-43,-125,-126,-133,-133,-141,-23,-44,0,-22,0,0,0,-25,0,-62,-35,-70,-35,-61,-19,-119,-73,-75,0,0,0,-67,-31,-34,60,78,103,21,82,82,84,52,122,4,4,4,27,4,100,4,149,0,0,0,16,0,0,0,0,-542,0,-896,-909,-819,-374,-375,-366,-29983,-767,-29984,-29985]} 1. f4 {[%emt 0:00:07]} d5 {[%emt 0:00:23]} 2. Nf3 {[%emt 0:00:07]} e6 {[%emt 0:00:15]} 3. e3 {[%emt 0:00:14]} Nf6 {[%emt 0:00:27]} 4. b3 {[%emt 0:00:35]} c5 {[%emt 0:00:55]} 5. Bb2 {[%emt 0:00:33]} Nc6 {[%emt 0:00:25]} 6. Bb5 {[%emt 0:00:46]} Bd7 {[%emt 0:00:36]} 7. O-O {[%emt 0:00:27]} Be7 {[%emt 0:04:30]} 8. Bxc6 {[%emt 0:03:29]} Bxc6 {[%emt 0:00:20]} 9. Ne5 {[%emt 0:00:24]} Qc7 {[%emt 0:02:08]} 10. d3 {[%emt 0:01:11]} O-O {[%emt 0:01:31]} 11. Nd2 {[%emt 0:00:42]} b5 {[%emt 0:01:34]} 12. Qf3 {[%emt 0:03:18]} Bb7 {[%emt 0:17:34][%cal Oc5c4]} 13. Qf2 {[%emt 0:06:55]} Ne8 {[%emt 0:04:19] Black is slightly better.} 14. c3 {[%emt 0:03:10]} f6 {[%emt 0:03:53]} 15. Nef3 {[%emt 0:00:30]} Nd6 {[%emt 0:01:34]} 16. Rac1 {[%emt 0:04:17]} e5 {[%emt 0:08:47]} 17. g3 {[%emt 0:05:34]} (17. fxe5 $15 fxe5 18. c4) 17... e4 {[%emt 0:04:40]} 18. dxe4 {[%emt 0:01:55]} dxe4 {[%emt 0:01:10]} 19. Ne1 {[%emt 0:02:41][%cal Bf3e1,Be1c2,Bc2d4][%mdl 32] White is weak on the light squares} c4 {[%emt 0:04:44] Black is more active.} (19... a5 $17 {Strongly threatening ...Qd7.} 20. c4 b4) 20. Nc2 {[%emt 0:02:20]} Qa5 {[%emt 0:04:32]} 21. Ra1 {[%emt 0:04:34]} Rac8 {[%emt 0:03:33]} 22. Nd4 {[%emt 0:00:55]} Bd5 {[%emt 0:06:03]} 23. Rfc1 {[%emt 0:01:16]} Qb6 {[%emt 0:01:53]} 24. b4 {[%emt 0:01:28]} (24. Ba3 $11) 24... a5 {[%emt 0:01:52]} 25. a3 {[%emt 0:01:21]} f5 {[%emt 0:03:02]} 26. a4 {[%emt 0:01:57]} axb4 {[%emt 0:01:19]} 27. a5 {[%emt 0:00:13]} (27. cxb4 $11 bxa4 28. Rxa4) 27... Qa6 {[%emt 0:02:36]} (27... Qc5 $6 28. cxb4 Qa7 (28... Qxb4 $2 29. Ba3 $18) 29. Nb1 $11) (27... bxc3 $142 $1 28. Bxc3 (28. axb6 cxb2 $17) 28... Qb8) 28. cxb4 $17 {[%emt 0:00:35]} Nb7 {[%emt 0:00:50]} (28... Ne8 $17 29. Nb1 (29. Bc3 Nc7 $17) 29... Bxb4) 29. Bc3 $11 {[%emt 0:00:20]} Nd8 {[%emt 0:01:29]} 30. Qe1 {[%emt 0:01:16]} (30. Nb1 $11) 30... Nc6 {[%emt 0:01:43]} 31. Nb1 {[%emt 0:02:06]} Bf6 {[%emt 0:02:57]} (31... Nxd4 $15 32. Bxd4 Rfd8) 32. Nxc6 $14 {[%emt 0:00:39]} Qxc6 {[%emt 0:00:13]} (32... Bxc6 33. Bxf6 gxf6 (33... Rxf6 34. Rd1 $14) 34. Na3 $11) 33. Na3 {[%emt 0:01:09]} (33. Bxf6 $1 $16 Qxf6 34. Nc3) 33... Rcd8 {[%emt 0:05:50]} (33... Be7 $11 {remains equal.}) 34. Bxf6 $1 $16 {[%emt 0:02:08]} Rxf6 {[%emt 0:00:08]} 35. Nc2 {[%emt 0:00:24]} Qe8 {[%emt 0:01:58] [#]} (35... Be6 $14) 36. Nd4 {[%emt 0:00:59]} (36. Rd1 $1 $16) 36... Ba8 {[%emt 0:00:11][%cal Od8d4]} 37. Qc3 {[%emt 0:01:15]} h5 {[%emt 0:00:29]} 38. Rc2 {[%emt 0:00:47]} Rd5 {[%emt 0:01:54]} (38... Bb7 $11) 39. Rd2 {[%emt 0:01:08]} (39. a6 $16) 39... h4 {[%emt 0:00:51]} 40. Rad1 {[%emt 0:00:54]} ({White should try} 40. gxh4 $16 {Threatens to win with Rg2.} Rfd6 41. a6) 40... hxg3 {[%emt 0:02:01]} 41. hxg3 {[%emt 0:30:13]} Qg6 {[%emt 0:30:59]} 42. Rg2 {[%emt 0:08:54]} Qg4 {[%emt 0:00:34]} 43. Rc1 {[%emt 0:01:50]} Rh6 {[%emt 0:01:57]} 44. Qe1 $2 {[%emt 0:00:46][%mdl 8192] [#]} (44. Kf2 $11 {and White is okay.}) 44... Rh3 $2 {[%emt 0:00:00]} ({Black should play} 44... Rxd4 $1 $19 45. exd4 e3 46. Qxe3 Rh1+ 47. Kf2 Bxg2 48. Rxh1 Bxh1) 45. Ne6 $2 {[%emt 0:00:00][%mdl 8192]} (45. Rd1 $11) 45... Qh5 $19 {[%emt 0:00:00]} 46. Kf2 {[%emt 0:00:00]} Rd3 {[%emt 0:00:00]} (46... Rh2 $142 {( -> ...Qf3+)} 47. Ng5 Rd3) 47. Ng5 {[%emt 0:00:00] Wards off Qf3+} Rh2 {[%emt 0:00:00]} 48. Rxh2 $2 {[%emt 0:00:00]} (48. Rc2 $19 Rh1 49. Qe2 Qxe2+ 50. Rxe2) 48... Qxh2+ {[%emt 0:00:00]} 49. Kf1 {[%emt 0:00:00]} Rd2 {[%emt 0:00:00] Weighted Error Value: White=0.72/Black=0.64.  Loses game:     	White=2     	---        Missed win:     	---       	Black=1      Mistake:       	White=9     	Black=8      Inaccurate:     	White=4     	Black=6      OK:         	White=5     	Black=3      Best:        	White=3     	Black=1      Strong:       	White=1     	---} 0-1

[Event "Seniors-LEM-50 Sachsen-Anhalt 2024"]
[Site "Magdeburg"]
[Date "2024.07.01"]
[Round "1.12"]
[White "Anderberg, Peter"]
[Black "Langner, Hans-Rainer"]
[Result "1/2-1/2"]
[ECO "D11"]
[WhiteElo "1909"]
[BlackElo "1730"]
[Annotator "TA"]
[PlyCount "100"]
[EventDate "2024.06.25"]
[EventType "swiss"]
[EventCountry "GER"]
[SourceTitle "playchess.com"]
[Source "ChessBase"]
[SourceQuality "1"]
[TimeControl "40/5400+30:1800+30"]

{[%evp 10,100,28,5,20,13,12,15,12,17,31,33,39,41,58,53,45,45,87,67,92,67,123,63,130,121,116,139,144,124,128,121,132,120,208,225,227,207,245,237,243,260,246,226,241,209,254,248,243,258,226,165,361,347,354,368,346,282,472,464,558,558,902,896,1303,1277,2312,1876,2323,2586,9080,6195,3504,0,0,0,0,0,0,0,0,0,0,0,0,0,0,0,0,0,0,0,0]} 1. d4 {[%emt 0:00:09]} d5 {[%emt 0:00:12]} 2. c4 {[%emt 0:00:05]} c6 {[%emt 0:00:20]} 3. Nf3 {[%emt 0:00:07]} Nf6 {[%emt 0:00:39]} 4. e3 {[%emt 0:00:46]} Bg4 {[%emt 0:01:12]} 5. Nc3 {[%emt 0:00:38]} e6 {[%emt 0:00:37]} 6. Be2 {[%emt 0:02:53]} Bxf3 {[%emt 0:02:06]} 7. Bxf3 {[%emt 0:00:40]} dxc4 {[%emt 0:00:46]} 8. Qa4 {[%emt 0:00:56]} Nbd7 {[%emt 0:04:20]} 9. Qxc4 {[%emt 0:04:58]} Nb6 {[%emt 0:01:16]} 10. Qb3 {[%emt 0:01:57]} Qc7 {[%emt 0:03:31]} 11. Bd2 {[%emt 0:06:17]} Be7 {[%emt 0:00:34]} 12. Rc1 {[%emt 0:00:39]} O-O {[%emt 0:00:56]} 13. O-O {[%emt 0:01:24]} Qd7 {[%emt 0:09:07]} 14. Rfd1 {[%emt 0:02:35]} Nfd5 {[%emt 0:04:14]} 15. e4 {[%emt 0:11:38]} Nf6 {[%emt 0:04:09]} (15... Nxc3 $14 16. Bxc3 (16. bxc3 c5 $16) (16. Qxc3 Kh8 $16) 16... Rfc8) 16. Bg5 {[%emt 0:03:57]} ({Better is} 16. Be3 $16) 16... h6 {[%emt 0:01:49]} (16... Nfd5 $14 17. Bd2 Nxc3 18. Bxc3 (18. bxc3 c5 $16) (18. Qxc3 Rad8 $16) 18... Rfd8) 17. Be3 $16 {[%emt 0:07:32]} Rfd8 {[%emt 0:03:31]} 18. a4 {[%emt 0:06:02]} Nc8 {[%emt 0:03:24]} 19. d5 {[%emt 0:06:29]} exd5 {[%emt 0:12:10]} 20. exd5 {[%emt 0:00:19]} c5 {[%emt 0:01:05]} 21. Nb5 {[%emt 0:12:41] White is more active.} a6 {[%emt 0:18:25]} (21... Bf8 $16 {was called for.} 22. Bxc5 Bxc5) 22. d6 $1 $18 {[%emt 0:02:41]} Nxd6 {[%emt 0:02:34]} 23. Nxd6 {[%emt 0:01:15]} Bxd6 {[%emt 0:01:22]} 24. Bxc5 {[%emt 0:01:38] A strong pair of Bishops.} (24. Qxb7 $6 Qe6 (24... Qxa4 $2 25. Rxd6 Qa2 26. Rxf6 $18)) 24... Qe7 {[%emt 0:04:42]} 25. Bxd6 {[%emt 0:03:56]} Rxd6 {[%emt 0:00:40]} 26. Rxd6 {[%emt 0:05:01]} (26. Bxb7 $2 Rxd1+ 27. Rxd1 Rb8 $19) 26... Qxd6 {[%emt 0:02:21]} 27. Qxb7 {[%emt 0:01:26]} (27. Bxb7 Rb8 28. Qc2 Qb6 $11) 27... Rb8 {[%emt 0:00:29]} 28. Rc8+ {[%emt 0:00:20]} Rxc8 {[%emt 0:00:21]} 29. Qxc8+ {[%emt 0:00:04][%mdl 4096] Endgame. KQB-KQN} Kh7 {[%emt 0:00:22]} 30. g3 {[%emt 0:02:46] Hoping for a5.} g6 $2 {[%emt 0:01:57]} (30... Qd3) 31. a5 {[%emt 0:05:44]} Qd3 {[%emt 0:03:05]} 32. Kg2 {[%emt 0:02:22]} Kg7 {[%emt 0:03:33]} 33. Qb7 {[%emt 0:01:18] Wards off Ne4} g5 $2 {[%emt 0:01:38]} (33... h5 34. h4 Ne8) 34. h3 {[%emt 0:02:10]} h5 {[%emt 0:01:08][%cal Bh6h5,Bh5g4][%mdl 32]} 35. b4 {[%emt 0:01:13]} g4 {[%emt 0:00:50]} 36. hxg4 {[%emt 0:00:02]} hxg4 {[%emt 0:00:50]} 37. Bc6 {[%emt 0:00:48]} Qh7 {[%emt 0:00:19]} 38. Qxa6 {[%emt 0:00:58] [#] Threatens to win with Qb5.} Qh3+ {[%emt 0:01:08]} 39. Kg1 {[%emt 0:00:02] And now Qb7 would win.} Nh7 {[%emt 0:02:56]} 40. Qb7 {[%emt 0:03:14]} Qh6 {[%emt 0:03:18]} 41. Bg2 $2 {[%emt 0:06:01]} (41. a6 $18 {White wants to mate with a7.} Ng5 42. Qd7 (42. a7 Nh3+ 43. Kf1 Qd2) 42... Nf3+ 43. Bxf3 Qxa6 44. Qxg4+ Kf6 45. Qh4+ Kf5 46. Bd5) 41... Qc1+ $11 {[%emt 0:00:48] The position is equal.} 42. Kh2 {[%emt 0:00:35]} (42. Bf1 $5 Ng5 $8 43. Kg2 $11) 42... Qh6+ {[%emt 0:00:14]} 43. Kg1 {[%emt 0:00:03]} Qc1+ {[%emt 0:00:08]} 44. Bf1 {[%emt 0:07:53]} (44. Kh2 $5 Qh6+ $8 45. Kg1 $11) 44... Ng5 {[%emt 0:01:20] [#] aiming for ...Nf3+.} 45. Kg2 {[%emt 0:02:22]} (45. Qd7 $5 Nf3+ $8 46. Kg2 Ne1+ 47. Kg1 (47. Kh1 $2 Qh6+ 48. Kg1 Nf3+ 49. Kg2 Qh3#) 47... Nf3+ 48. Kg2 Ne1+ 49. Kg1 (49. Kh1 $2 Qh6+ 50. Kg1 Nf3+ 51. Kg2 Qh3#) 49... Nf3+ $11) 45... Nf3 {[%emt 0:02:52] ...Qh6 is the strong threat.} 46. Qe4 {[%emt 0:00:28]} (46. Qd7 $5 Ne1+ $8 47. Kg1 (47. Kh1 $2 {is a self mate.} Qh6+ 48. Kg1 Nf3+ 49. Kg2 Qh3#) 47... Nf3+ 48. Kg2 Ne1+ 49. Kg1 (49. Kh1 $2 Qh6+ 50. Kg1 Nf3+ 51. Kg2 Qh3#) 49... Nf3+ 50. Kg2 $11) 46... Ne1+ {[%emt 0:03:40]} 47. Kg1 $1 {[%emt 0:01:52]} ({Don't go for} 47. Kh1 $2 Qh6+ 48. Kg1 Nf3+ $19) 47... Nf3+ {[%emt 0:00:19]} 48. Kg2 {[%emt 0:00:38]} Ne1+ {[%emt 0:27:13]} 49. Kg1 $1 {[%emt 0:15:28]} ({Avoid the trap} 49. Kh1 $2 Qh6+ 50. Kg1 Nf3+ $19) 49... Nf3+ {[%emt 0:00:00]} 50. Kg2 {[%emt 0:00:00]} Ne1+ {[%emt 0:01:00] Black defended with fortune.   Weighted Error Value: White=0.20 (precise) /Black=0.30.  Mistake:       	White=1     	Black=5      Inaccurate:     	---       	Black=3      OK:         	White=11    	Black=9      Best:        	White=7     	Black=7      Strong:       	White=3     	---} 1/2-1/2

[Event "Seniors-LEM-50 Sachsen-Anhalt 2024"]
[Site "Magdeburg"]
[Date "2024.07.01"]
[Round "1.13"]
[White "Remstedt, Ute"]
[Black "Korte, Markus"]
[Result "1/2-1/2"]
[ECO "D04"]
[WhiteElo "1710"]
[BlackElo "1895"]
[Annotator "NA RC"]
[PlyCount "58"]
[EventDate "2024.06.25"]
[EventType "swiss"]
[EventCountry "GER"]
[SourceTitle "playchess.com"]
[Source "ChessBase"]
[SourceQuality "1"]
[TimeControl "40/5400+30:1800+30"]

1. d4 {[%emt 0:00:04]} d5 {[%emt 0:00:35]} 2. Nf3 {[%emt 0:00:34]} Nf6 {[%emt 0:00:29]} 3. e3 {[%emt 0:01:02]} Bg4 {[%emt 0:00:49]} 4. Be2 {[%emt 0:01:15]} e6 {[%emt 0:01:23]} 5. a3 {[%emt 0:03:06]} Nbd7 {[%emt 0:02:54]} 6. Nbd2 {[%emt 0:03:07] D04: Colle System.} Bd6 {[%emt 0:01:18]} 7. b4 {[%emt 0:07:07]} e5 {[%emt 0:16:03]} 8. dxe5 {[%emt 0:04:46]} Nxe5 {[%emt 0:00:22]} 9. Bb2 {[%emt 0:01:28]} Ng6 {[%emt 0:08:08]} 10. O-O {[%emt 0:04:30]} O-O {[%emt 0:02:07]} 11. Rc1 {[%emt 0:04:45]} Qe7 {[%emt 0:05:48]} 12. c4 {[%emt 0:09:07]} c6 {[%emt 0:03:48]} 13. Bxf6 {[%emt 0:10:07]} Qxf6 {[%emt 0:00:48]} 14. cxd5 {[%emt 0:01:09]} cxd5 {[%emt 0:00:24]} 15. Qb3 {[%emt 0:03:48]} Rad8 {[%emt 0:03:23]} 16. Rfd1 {[%emt 0:06:47]} Nh4 {[%emt 0:06:52]} 17. h3 {[%emt 0:06:07]} Bh5 {[%emt 0:06:34]} 18. Qd3 {[%emt 0:08:12]} (18. Qxd5 $2 {loses.} Bh2+ 19. Nxh2 Rxd5 $19) 18... Bg6 {[%emt 0:08:39]} 19. Qd4 {[%emt 0:02:01]} Nxf3+ {[%emt 0:01:21]} 20. Nxf3 {[%emt 0:00:33]} Qe7 {[%emt 0:00:34]} 21. Qxa7 {[%emt 0:01:35]} ({Much worse is} 21. Qxd5 Bh2+ 22. Nxh2 Rxd5 23. Rxd5 Be4 $15) 21... Ra8 {[%emt 0:01:55]} 22. Qb6 {[%emt 0:04:33]} Rxa3 {[%emt 0:05:47]} 23. Rxd5 {[%emt 0:00:10]} Bxb4 {[%emt 0:04:34]} 24. Rb5 {[%emt 0:06:06]} (24. Rc7 $142 Qe4 25. Rcd7 (25. Qxb7 Ra1+ 26. Rd1 Rxd1+ 27. Bxd1 Qb1 $16)) 24... Rc3 {[%emt 0:08:14]} 25. Rxc3 {[%emt 0:01:46]} Bxc3 {[%emt 0:00:08]} 26. Qxb7 {[%emt 0:00:15]} Qf6 {[%emt 0:02:37]} 27. Qc7 {[%emt 0:02:34]} h6 $16 {[%emt 0:03:07]} 28. Qc5 {[%emt 0:02:54]} Be4 {[%emt 0:03:35]} 29. Rb6 {[%emt 0:00:08]} Qd8 {[%emt 0:00:12]} 1/2-1/2

[Event "Seniors-LEM-50 Sachsen-Anhalt 2024"]
[Site "Magdeburg"]
[Date "2024.07.01"]
[Round "1.14"]
[White "Schiller, Dirk"]
[Black "Gaertig, Johannes"]
[Result "1-0"]
[ECO "C01"]
[WhiteElo "1885"]
[BlackElo "1687"]
[Annotator "NA RC"]
[PlyCount "133"]
[EventDate "2024.06.25"]
[EventType "swiss"]
[EventCountry "GER"]
[SourceTitle "playchess.com"]
[Source "ChessBase"]
[SourceQuality "1"]
[TimeControl "40/5400+30:1800+30"]

1. e4 {[%emt 0:00:13]} e6 {[%emt 0:00:34]} 2. d4 {[%emt 0:01:12]} a6 {[%emt 0:01:17]} 3. Nf3 {[%emt 0:01:21]} Bb4+ {[%emt 0:01:10]} 4. c3 {[%emt 0:01:13]} Be7 {[%emt 0:00:25]} 5. Bd3 {[%emt 0:00:55]} c6 {[%emt 0:00:40]} 6. Bf4 {[%emt 0:02:04]} Nf6 {[%emt 0:01:30]} 7. Nbd2 {[%emt 0:01:34]} b5 {[%emt 0:01:29]} 8. a3 {[%emt 0:01:30]} d5 {[%emt 0:05:12]} 9. e5 {[%emt 0:02:51]} Nh5 {[%emt 0:01:52]} 10. Bg3 {[%emt 0:00:23]} Nxg3 {[%emt 1:21:21]} 11. hxg3 {[%emt 1:22:44]} Nd7 {[%emt 0:00:00]} 12. b4 {[%emt 0:00:00]} Nb6 {[%emt 0:00:00]} 13. Qc2 {[%emt 0:00:00]} h6 {[%emt 0:00:00]} 14. Nb3 {[%emt 0:00:00]} Na4 {[%emt 0:00:00]} 15. O-O {[%emt 0:00:00]} O-O {[%emt 0:00:00]} 16. Nh2 {[%emt 0:00:00]} f5 {[%emt 0:00:00]} 17. exf6 {[%emt 0:00:00]} Bxf6 {[%emt 0:00:00]} 18. f4 {[%emt 0:00:00]} Qd6 {[%emt 0:00:00]} 19. Ng4 {[%emt 0:00:00]} Ra7 {[%emt 0:00:00]} 20. Rae1 {[%emt 0:00:00]} Re7 {[%emt 0:00:00]} 21. Bh7+ {[%emt 0:00:00]} Kh8 {[%emt 0:00:00]} 22. Ne5 {[%emt 0:00:00]} Bxe5 {[%emt 0:00:00]} 23. Rxe5 {[%emt 0:00:00]} Nb6 {[%emt 0:00:00]} 24. Bd3 {[%emt 0:00:00]} Nd7 {[%emt 0:00:00]} 25. Re3 {[%emt 0:00:00]} Nf6 {[%emt 0:00:00]} 26. Nc5 {[%emt 0:00:00]} Ng4 {[%emt 0:00:00]} 27. Ref3 {[%emt 0:00:00]} Nf6 {[%emt 0:00:00]} 28. Re1 {[%emt 0:00:00]} Ng4 {[%emt 0:00:00]} 29. Qd2 {[%emt 0:00:00]} Nf6 {[%emt 0:00:00]} 30. a4 {[%emt 0:00:00]} Ng4 {[%emt 0:00:00]} (30... bxa4 {might work better.} 31. Ra1 (31. Nxa6 Bxa6 32. Bxa6 c5 $11) (31. Nxa4 Ra7 $18) 31... Qd8 32. Rxa4 (32. Nxa4 a5 $16) 32... Qe8) 31. a5 {[%emt 0:00:00]} Rf6 {[%emt 0:00:00]} 32. Be2 {[%emt 0:00:00]} h5 {[%emt 0:00:00]} 33. Nd3 {[%emt 0:00:00]} Rh6 {[%emt 0:00:00]} 34. Ne5 {[%emt 0:00:00]} Nxe5 $2 {[%emt 0:00:00]} (34... Nf6 35. Bd3 Rb7 36. Ng6+ Kg8) 35. fxe5 {[%emt 0:00:00]} Qd8 {[%emt 0:00:00]} 36. Ref1 {[%emt 0:00:00]} Re8 {[%emt 0:00:00]} 37. Bd3 {[%emt 0:00:00]} Rg8 {[%emt 0:00:00]} 38. Qf2 {[%emt 0:00:00]} Bd7 {[%emt 0:00:00]} 39. Rf8 {[%emt 0:00:00]} Qe7 {[%emt 0:00:00]} 40. Qf7 {[%emt 0:00:00]} Qxf7 {[%emt 0:00:00]} 41. R1xf7 {[%emt 0:11:09]} Be8 {[%emt 0:14:31]} 42. Rxg8+ {[%emt 0:02:09]} Kxg8 {[%emt 0:00:10]} 43. Ra7 {[%emt 0:00:08]} Bg6 {[%emt 0:00:43]} 44. Bxg6 {[%emt 0:01:00]} Rxg6 {[%emt 0:00:09]} 45. Kh2 {[%emt 0:00:08]} h4 {[%emt 0:00:28]} 46. gxh4 {[%emt 0:00:14]} Rg4 {[%emt 0:00:29]} 47. g3 {[%emt 0:00:24]} Re4 {[%emt 0:00:16]} 48. Rxa6 {[%emt 0:00:18]} Kf7 {[%emt 0:01:03]} 49. Rxc6 {[%emt 0:00:28]} Re2+ {[%emt 0:00:14]} 50. Kh3 {[%emt 0:00:10]} Ra2 {[%emt 0:00:11]} 51. Rc5 {[%emt 0:00:42]} Kg6 {[%emt 0:00:11]} 52. Rxb5 {[%emt 0:01:30]} Kf5 {[%emt 0:00:16]} 53. Rb7 {[%emt 0:00:29]} Kg6 {[%emt 0:00:31]} 54. Re7 {[%emt 0:00:53]} Ra3 {[%emt 0:00:33]} 55. Rxe6+ {[%emt 0:00:20]} Kf7 {[%emt 0:00:15]} 56. Rc6 {[%emt 0:00:26]} g6 {[%emt 0:00:57]} 57. Kg4 {[%emt 0:00:32]} Ra1 {[%emt 0:00:38]} 58. Kg5 {[%emt 0:00:18]} Rg1 {[%emt 0:01:49]} 59. g4 {[%emt 0:00:08]} Re1 {[%emt 0:00:11]} 60. Rf6+ {[%emt 0:00:45]} Ke7 {[%emt 0:00:41]} 61. a6 {[%emt 0:01:12]} Ra1 {[%emt 0:00:14]} 62. Rxg6 {[%emt 0:00:22]} Ra3 {[%emt 0:00:12]} 63. a7 {[%emt 0:00:15]} Kf7 {[%emt 0:00:21]} 64. Rf6+ {[%emt 0:01:04]} Kg7 {[%emt 0:00:33]} 65. e6 {[%emt 0:01:14]} Rxc3 {[%emt 0:01:37]} 66. a8=Q {[%emt 0:00:25]} Rc8 {[%emt 0:00:00]} 67. Rf7+ {[%emt 0:00:40]} 1-0

[Event "Seniors-LEM-50 Sachsen-Anhalt 2024"]
[Site "Magdeburg"]
[Date "2024.07.01"]
[Round "1.15"]
[White "Ehrich, Dieter"]
[Black "Mitschka, Manfred"]
[Result "1/2-1/2"]
[ECO "A40"]
[WhiteElo "1719"]
[BlackElo "1863"]
[Annotator "NA RC"]
[PlyCount "53"]
[EventDate "2024.06.25"]
[EventType "swiss"]
[EventCountry "GER"]
[SourceTitle "playchess.com"]
[Source "ChessBase"]
[SourceQuality "1"]
[TimeControl "40/5400+30:1800+30"]

1. c4 {[%emt 0:00:06]} b6 {[%emt 0:00:19]} 2. d4 {[%emt 0:01:12]} e6 {[%emt 0:00:39]} 3. e4 {[%emt 0:00:44]} Bb7 {[%emt 0:00:13]} 4. Nc3 {[%emt 0:03:53]} Bb4 {[%emt 0:00:14]} 5. Bd3 {[%emt 0:04:06]} f5 {[%emt 0:08:14]} 6. Bd2 {[%emt 0:11:39] A40: Unusual replies to 1 d4.} Nf6 {[%emt 0:06:02]} 7. d5 {[%emt 0:03:41]} fxe4 {[%emt 0:03:27]} 8. Nxe4 {[%emt 0:05:55]} Bxd2+ {[%emt 0:01:46]} 9. Nxd2 {[%emt 0:04:44]} Na6 {[%emt 0:04:14]} 10. Ngf3 {[%emt 0:06:17]} Nc5 {[%emt 0:02:07]} 11. Bc2 {[%emt 0:03:16]} exd5 {[%emt 0:02:10]} 12. O-O {[%emt 0:02:38]} O-O {[%emt 0:01:34]} 13. b4 {[%emt 0:02:04]} Na6 {[%emt 0:06:59]} 14. Qb1 {[%emt 0:01:13]} h6 {[%emt 0:02:03]} 15. Ne5 {[%emt 0:01:45]} c5 {[%emt 0:07:39]} 16. cxd5 {[%emt 0:03:38]} Nxb4 $17 {[%emt 0:04:30]} (16... cxb4 17. d6 Nc5 18. Re1 $11 (18. Qxb4 Nd5 $11)) 17. d6 {[%emt 0:04:11]} Nxc2 {[%emt 0:02:27]} 18. Qxc2 {[%emt 0:00:13]} Nh5 {[%emt 0:05:24]} (18... Nd5 $17 19. Qb3 Re8 (19... Qg5 20. Ndf3 $17)) 19. Qc4+ {[%emt 0:03:33]} Kh7 {[%emt 0:07:49]} 20. Qd3+ {[%emt 0:05:39]} Kg8 {[%emt 0:01:25]} 21. Qc4+ {[%emt 0:00:17]} Kh7 {[%emt 0:05:00]} 22. Qd3+ {[%emt 0:00:23]} Kh8 {[%emt 0:00:32]} 23. Ng6+ {[%emt 0:01:11]} Kg8 {[%emt 0:00:34]} 24. Ne7+ {[%emt 0:01:22]} ({But not} 24. Nxf8 Qxf8 25. g3 Nf6 $11) 24... Kh8 {[%emt 0:01:31]} 25. Ng6+ {[%emt 0:00:46]} Kg8 {[%emt 0:00:53]} 26. Ne7+ {[%emt 0:00:37]} Kh8 {[%emt 0:00:59] [#]} 27. Ng6+ {[%emt 0:00:20]} (27. f4 $1 $16) 1/2-1/2